[Event "FIDE World Rapid Chess Championship 2021"]
[White "Petrovskyi, Vadym"]
[Black "Kozak, Adam"]
[WhiteFideId "14165210"]
[BlackFideId "753246"]
[WhiteElo "2282"]
[BlackElo "2552"]
[Result "0-1"]
[Round "08"]
[TimeControl "900+10"]
[Date "2021.12.27"]
[WhiteClock "0:01:16"]
[BlackClock "0:00:55"]

1. e4 {[%clk 0:15:00]}  e5 {[%clk 0:15:00]} 2. Nf3 {[%clk 0:15:00]}  Nc6 {[%clk 0:15:00]} 3. d4 {[%clk 0:15:00]}  exd4 {[%clk 0:13:42]} 4. Bc4 {[%clk 0:16:32]}  Bc5 {[%clk 0:13:42]} 5. c3 {[%clk 0:16:32]}  Nf6 {[%clk 0:13:42]} 6. cxd4 {[%clk 0:16:32]}  Bb4+ {[%clk 0:13:42]} 7. Bd2 {[%clk 0:16:32]}  Nxe4 {[%clk 0:13:42]} 8. Bxb4 {[%clk 0:16:32]}  Nxb4 {[%clk 0:13:42]} 9. Bxf7+ {[%clk 0:16:32]}  Kxf7 {[%clk 0:13:42]} 10. Qb3+ {[%clk 0:16:32]}  Kf8 {[%clk 0:13:42]} 11. Qxb4+ {[%clk 0:16:32]}  Qe7 {[%clk 0:13:42]} 12. Qxe7+ {[%clk 0:16:32]}  Kxe7 {[%clk 0:13:42]} 13. O-O {[%clk 0:16:32]}  Nf6 {[%clk 0:13:42]} 14. Re1+ {[%clk 0:16:32]}  Kd8 {[%clk 0:13:42]} 15. Nc3 {[%clk 0:16:32]}  d6 {[%clk 0:13:42]} 16. d5 {[%clk 0:16:32]}  Bd7 {[%clk 0:14:00]} 17. Nd4 {[%clk 0:14:53]}  Re8 {[%clk 0:12:58]} 18. f3 {[%clk 0:10:56]}  a5 {[%clk 0:12:58]} 19. g4 {[%clk 0:10:45]}  a4 {[%clk 0:10:53]} 20. g5 {[%clk 0:09:34]}  Nh5 {[%clk 0:09:29]} 21. Rxe8+ {[%clk 0:08:18]}  Kxe8 {[%clk 0:09:29]} 22. Re1+ {[%clk 0:08:18]}  Kf7 {[%clk 0:09:29]} 23. Ncb5 {[%clk 0:08:18]}  Ra5 {[%clk 0:04:33]} 24. Nxc7 {[%clk 0:08:18]}  Nf4 {[%clk 0:04:33]} 25. h4 {[%clk 0:08:07]}  Nxd5 {[%clk 0:02:20]} 26. Nxd5 {[%clk 0:08:07]}  Rxd5 {[%clk 0:02:20]} 27. Re4 {[%clk 0:08:07]}  Rc5 {[%clk 0:02:20]} 28. Kf2 {[%clk 0:08:07]}  h6 {[%clk 0:00:54]} 29. f4 {[%clk 0:08:02]}  Rc4 {[%clk 0:00:54]} 30. Ke3 {[%clk 0:08:02]}  Rc1 {[%clk 0:00:54]} 31. f5 {[%clk 0:07:42]}  hxg5 {[%clk 0:00:00]} 32. hxg5 {[%clk 0:07:42]}  Re1+ {[%clk 0:00:00]} 33. Kd3 {[%clk 0:04:13]}  Rf1 {[%clk 0:00:16]} 34. Ke2 {[%clk 0:04:13]}  Rb1 {[%clk 0:00:16]} 35. b3 {[%clk 0:01:36]}  Rb2+ {[%clk 0:00:18]} 36. Kf3 {[%clk 0:01:36]}  Rxa2 {[%clk 0:00:18]} 37. bxa4 {[%clk 0:01:36]}  Rxa4 {[%clk 0:00:18]} 38. Rf4 {[%clk 0:01:36]}  Ra3+ {[%clk 0:00:18]} 39. Kf2 {[%clk 0:01:36]}  Ra2+ {[%clk 0:00:18]} 40. Kf1 {[%clk 0:01:36]}  Ra5 {[%clk 0:00:18]} 41. Kf2 {[%clk 0:01:36]}  Re5 {[%clk 0:00:18]} 42. Kg3 {[%clk 0:01:08]}  b5 {[%clk 0:00:11]} 43. Rf2 {[%clk 0:01:08]}  Rd5 {[%clk 0:00:11]} 44. Rf4 {[%clk 0:01:08]}  Rc5 {[%clk 0:00:11]} 45. Rf2 {[%clk 0:01:08]}  Rc4 {[%clk 0:00:11]} 46. Rd2 {[%clk 0:01:08]}  b4 {[%clk 0:00:11]} 47. Kf3 {[%clk 0:01:08]}  Rc5 {[%clk 0:00:11]} 48. Ke4 {[%clk 0:01:08]}  Re5+ {[%clk 0:00:20]} 49. Kf4 {[%clk 0:00:40]}  Rc5 {[%clk 0:00:20]} 50. Rf2 {[%clk 0:00:40]}  Rc4 {[%clk 0:00:20]} 51. Ke3 {[%clk 0:00:40]}  Rc3+ {[%clk 0:00:20]} 52. Ke4 {[%clk 0:00:40]}  Bc6+ {[%clk 0:00:20]} 53. Kf4 {[%clk 0:00:49]}  Bd5 {[%clk 0:00:20]} 54. Rd2 {[%clk 0:00:49]}  b3 {[%clk 0:00:20]} 55. Nb5 {[%clk 0:00:49]}  Rc4+ {[%clk 0:00:20]} 56. Kg3 {[%clk 0:00:49]}  Rc5 {[%clk 0:00:20]} 57. Nd4 {[%clk 0:00:49]}  Be4 {[%clk 0:00:20]} 58. Nxb3 {[%clk 0:01:16]}  Rxf5 {[%clk 0:00:55]} 59. Rxd6 {[%clk 0:01:16]}  Rf3+ {[%clk 0:00:55]} 60. Kg4 {[%clk 0:01:16]}  Rxb3 {[%clk 0:00:55]} 61. Kf4 {[%clk 0:01:16]}  Bg6 {[%clk 0:00:55]} 62. Rd7+ {[%clk 0:01:16]}  Kg8 {[%clk 0:00:55]} 63. Rd5 {[%clk 0:01:16]}  Rb4+ {[%clk 0:00:55]} 64. Kg3 {[%clk 0:01:16]}  Kh7 {[%clk 0:00:55]} 65. Kh3 {[%clk 0:01:16]}  Be4 {[%clk 0:00:55]} 66. Rd6 {[%clk 0:01:16]}  Bf5+ {[%clk 0:00:55]} 67. Kg3 {[%clk 0:01:16]}  Rg4+ {[%clk 0:00:55]} 68. Kf3 {[%clk 0:01:16]}  Rxg5 {[%clk 0:00:55]} 69. Kf4 {[%clk 0:01:16]}  Rh5 {[%clk 0:00:55]} 70. Rd5 {[%clk 0:01:16]}  Bg6 {[%clk 0:00:55]} 0-1


[Site "http://www.Chess.com"]

[Event "FIDE World Rapid Chess Championship 2021"]
[White "Vokhidov, Shamsiddin"]
[Black "Gajewski, Grzegorz"]
[WhiteFideId "14204223"]
[BlackFideId "1116207"]
[WhiteElo "2546"]
[BlackElo "2496"]
[Result "1-0"]
[Round "08"]
[TimeControl "900+10"]
[Date "2021.12.27"]
[WhiteClock "0:06:27"]
[BlackClock "0:01:28"]

1. e4 {[%clk 0:15:00]}  c5 {[%clk 0:15:00]} 2. Nf3 {[%clk 0:15:00]}  e6 {[%clk 0:15:00]} 3. d4 {[%clk 0:15:00]}  cxd4 {[%clk 0:15:00]} 4. Nxd4 {[%clk 0:15:00]}  a6 {[%clk 0:15:00]} 5. g3 {[%clk 0:14:55]}  d5 {[%clk 0:14:07]} 6. Nc3 {[%clk 0:14:55]}  dxe4 {[%clk 0:14:07]} 7. Nxe4 {[%clk 0:14:55]}  e5 {[%clk 0:14:07]} 8. Nf3 {[%clk 0:14:55]}  Qxd1+ {[%clk 0:14:07]} 9. Kxd1 {[%clk 0:14:55]}  Nc6 {[%clk 0:14:07]} 10. Be3 {[%clk 0:14:55]}  Bg4 {[%clk 0:14:07]} 11. Be2 {[%clk 0:14:55]}  O-O-O {[%clk 0:14:07]} 12. Nfd2 {[%clk 0:13:34]}  Bf5 {[%clk 0:13:46]} 13. Bd3 {[%clk 0:12:40]}  g6 {[%clk 0:12:54]} 14. Ng5 {[%clk 0:12:40]}  Bxd3 {[%clk 0:12:54]} 15. cxd3 {[%clk 0:09:20]}  Nh6 {[%clk 0:13:08]} 16. Ke2 {[%clk 0:09:20]}  Re8 {[%clk 0:13:08]} 17. Rac1 {[%clk 0:08:35]}  f5 {[%clk 0:11:42]} 18. Nc4 {[%clk 0:08:35]}  Kb8 {[%clk 0:11:42]} 19. Nb6 {[%clk 0:08:35]}  f4 {[%clk 0:10:44]} 20. Nd7+ {[%clk 0:07:51]}  Kc7 {[%clk 0:10:44]} 21. Nf6 {[%clk 0:07:51]}  Bg7 {[%clk 0:04:51]} 22. Nxe8+ {[%clk 0:07:40]}  Rxe8 {[%clk 0:04:51]} 23. Bd2 {[%clk 0:07:40]}  Nf5 {[%clk 0:04:51]} 24. Kd1 {[%clk 0:07:40]}  h6 {[%clk 0:04:51]} 25. Ne4 {[%clk 0:07:28]}  f3 {[%clk 0:03:19]} 26. Be3 {[%clk 0:07:28]}  Rd8 {[%clk 0:03:19]} 27. Kd2 {[%clk 0:07:28]}  Kb8 {[%clk 0:03:19]} 28. Rc4 {[%clk 0:06:54]}  Bf8 {[%clk 0:01:52]} 29. a3 {[%clk 0:06:54]}  g5 {[%clk 0:01:52]} 30. g4 {[%clk 0:06:54]}  Nfd4 {[%clk 0:01:52]} 31. Bxd4 {[%clk 0:06:54]}  exd4 {[%clk 0:01:52]} 32. h3 {[%clk 0:06:54]}  Na5 {[%clk 0:01:28]} 33. Rc2 {[%clk 0:06:27]}  Bd6 {[%clk 0:01:28]} 34. Nxd6 {[%clk 0:06:27]}  Nb3+ {[%clk 0:01:28]} 35. Kd1 {[%clk 0:06:27]}  Rxd6 {[%clk 0:01:28]} 36. Re1 {[%clk 0:06:27]}  Rf6 {[%clk 0:01:28]} 37. Re5 {[%clk 0:06:27]}  h5 {[%clk 0:01:28]} 38. gxh5 {[%clk 0:06:27]} 1-0


[Site "http://www.Chess.com"]

[Event "FIDE World Rapid Chess Championship 2021"]
[White "Kobalia, Mikhail"]
[Black "Gumularz, Szymon"]
[WhiteFideId "4119150"]
[BlackFideId "1188062"]
[WhiteElo "2543"]
[BlackElo "2452"]
[Result "0-1"]
[Round "08"]
[TimeControl "900+10"]
[Date "2021.12.27"]
[WhiteClock "0:01:02"]
[BlackClock "0:01:17"]

1. e4 {[%clk 0:15:00]}  c6 {[%clk 0:15:00]} 2. d4 {[%clk 0:15:00]}  d5 {[%clk 0:15:00]} 3. exd5 {[%clk 0:15:00]}  cxd5 {[%clk 0:15:00]} 4. Bd3 {[%clk 0:15:00]}  Nc6 {[%clk 0:15:00]} 5. c3 {[%clk 0:15:00]}  Nf6 {[%clk 0:15:00]} 6. Bf4 {[%clk 0:16:46]}  Bg4 {[%clk 0:16:08]} 7. Qb3 {[%clk 0:16:46]}  Qd7 {[%clk 0:16:08]} 8. Nd2 {[%clk 0:16:46]}  e6 {[%clk 0:16:08]} 9. Ngf3 {[%clk 0:16:46]}  Bd6 {[%clk 0:16:08]} 10. Bxd6 {[%clk 0:16:46]}  Qxd6 {[%clk 0:16:08]} 11. O-O {[%clk 0:16:46]}  O-O {[%clk 0:16:08]} 12. Rae1 {[%clk 0:16:46]}  Rab8 {[%clk 0:16:08]} 13. Ne5 {[%clk 0:16:46]}  Bh5 {[%clk 0:16:08]} 14. Qc2 {[%clk 0:16:46]}  Rfc8 {[%clk 0:16:08]} 15. Qb1 {[%clk 0:16:14]}  b5 {[%clk 0:09:14]} 16. a3 {[%clk 0:16:14]}  Na5 {[%clk 0:09:14]} 17. b4 {[%clk 0:14:58]}  Nc4 {[%clk 0:08:19]} 18. Ndxc4 {[%clk 0:13:00]}  bxc4 {[%clk 0:08:19]} 19. Bc2 {[%clk 0:13:00]}  Bg6 {[%clk 0:08:19]} 20. Bxg6 {[%clk 0:13:00]}  hxg6 {[%clk 0:06:22]} 21. Re3 {[%clk 0:11:58]}  Nd7 {[%clk 0:06:22]} 22. f4 {[%clk 0:11:58]}  Nf6 {[%clk 0:06:22]} 23. Rh3 {[%clk 0:11:58]}  Kf8 {[%clk 0:04:41]} 24. g4 {[%clk 0:11:34]}  Ne4 {[%clk 0:04:41]} 25. Qe1 {[%clk 0:11:34]}  Ke7 {[%clk 0:04:07]} 26. Rh7 {[%clk 0:10:07]}  Rg8 {[%clk 0:02:44]} 27. Qh4+ {[%clk 0:10:07]}  Nf6 {[%clk 0:02:44]} 28. f5 {[%clk 0:10:07]}  gxf5 {[%clk 0:02:44]} 29. gxf5 {[%clk 0:10:07]}  Rbf8 {[%clk 0:02:44]} 30. Qg5 {[%clk 0:04:37]}  Ke8 {[%clk 0:01:58]} 31. Rh3 {[%clk 0:04:37]}  Ne4 {[%clk 0:01:58]} 32. Qe3 {[%clk 0:04:37]}  Nf6 {[%clk 0:01:58]} 33. Rhf3 {[%clk 0:04:02]}  Kd8 {[%clk 0:00:46]} 34. Kh1 {[%clk 0:04:02]}  Kc8 {[%clk 0:00:46]} 35. a4 {[%clk 0:04:02]}  Kb7 {[%clk 0:00:46]} 36. Rg1 {[%clk 0:04:02]}  Ka8 {[%clk 0:00:31]} 37. fxe6 {[%clk 0:02:36]}  Qxe6 {[%clk 0:00:31]} 38. Rfg3 {[%clk 0:02:36]}  g6 {[%clk 0:00:31]} 39. Qf3 {[%clk 0:02:36]}  Ne4 {[%clk 0:00:31]} 40. Rg4 {[%clk 0:02:36]}  Rh8 {[%clk 0:00:31]} 41. Kg2 {[%clk 0:01:09]}  g5 {[%clk 0:00:29]} 42. Kh1 {[%clk 0:01:09]}  f5 {[%clk 0:00:29]} 43. Rxg5 {[%clk 0:01:09]}  Nxg5 {[%clk 0:00:29]} 44. Rxg5 {[%clk 0:01:09]}  Rh7 {[%clk 0:00:29]} 45. Rg6 {[%clk 0:01:09]}  Qc8 {[%clk 0:00:29]} 46. Qxd5+ {[%clk 0:01:09]}  Qb7 {[%clk 0:00:29]} 47. Qxb7+ {[%clk 0:01:09]}  Kxb7 {[%clk 0:00:29]} 48. Nxc4 {[%clk 0:01:09]}  f4 {[%clk 0:00:29]} 49. Nd6+ {[%clk 0:01:09]}  Kb8 {[%clk 0:00:29]} 50. Kg1 {[%clk 0:00:41]}  f3 {[%clk 0:00:30]} 51. Ne4 {[%clk 0:00:41]}  Re7 {[%clk 0:00:30]} 52. Rg4 {[%clk 0:00:41]}  Rfe8 {[%clk 0:00:30]} 53. Ng3 {[%clk 0:00:41]}  Rc7 {[%clk 0:00:30]} 54. Re4 {[%clk 0:00:41]}  Rec8 {[%clk 0:00:30]} 55. h4 {[%clk 0:00:41]}  Rxc3 {[%clk 0:00:30]} 56. Rf4 {[%clk 0:00:41]}  Rg8 {[%clk 0:00:30]} 57. Kh2 {[%clk 0:00:41]}  f2 {[%clk 0:00:30]} 58. Ne4 {[%clk 0:00:41]}  Rc4 {[%clk 0:00:00]} 59. Nxf2 {[%clk 0:00:25]}  Rxb4 {[%clk 0:00:00]} 60. h5 {[%clk 0:00:25]}  Rg5 {[%clk 0:00:00]} 61. Rf8+ {[%clk 0:00:25]}  Kb7 {[%clk 0:00:00]} 62. Rf7+ {[%clk 0:00:25]}  Ka6 {[%clk 0:00:00]} 63. Nd3 {[%clk 0:00:25]}  Rxh5+ {[%clk 0:00:00]} 64. Kg2 {[%clk 0:00:25]}  Rxd4 {[%clk 0:00:00]} 65. Nf4 {[%clk 0:00:25]}  Re5 {[%clk 0:00:00]} 66. Kf3 {[%clk 0:00:25]}  Rxa4 {[%clk 0:00:00]} 67. Nd3 {[%clk 0:00:25]}  Ra3 {[%clk 0:00:00]} 68. Kf4 {[%clk 0:00:25]}  Rb5 {[%clk 0:00:00]} 69. Ke4 {[%clk 0:00:25]}  Rc3 {[%clk 0:00:00]} 70. Kd4 {[%clk 0:00:25]}  Rc8 {[%clk 0:00:00]} 71. Ne5 {[%clk 0:00:25]}  Rd8+ {[%clk 0:00:00]} 72. Ke4 {[%clk 0:00:25]}  Re8 {[%clk 0:00:00]} 73. Rf5 {[%clk 0:00:25]}  Ka5 {[%clk 0:01:17]} 74. Kd4 {[%clk 0:01:02]}  Rexe5 {[%clk 0:01:17]} 75. Rxe5 {[%clk 0:01:02]}  Rxe5 {[%clk 0:01:17]} 76. Kxe5 {[%clk 0:01:02]}  Kb4 {[%clk 0:01:17]} 77. Kd4 {[%clk 0:01:02]}  a5 {[%clk 0:01:17]} 78. Kd3 {[%clk 0:01:02]}  Kb3 {[%clk 0:01:17]} 79. Kd4 {[%clk 0:01:02]} 0-1


[Site "http://www.Chess.com"]

[Event "FIDE World Rapid Chess Championship 2021"]
[White "Zvjaginsev, Vadim"]
[Black "Heberla, Bartlomiej"]
[WhiteFideId "4113403"]
[BlackFideId "1115120"]
[WhiteElo "2539"]
[BlackElo "2437"]
[Result "0-1"]
[Round "08"]
[TimeControl "900+10"]
[Date "2021.12.27"]
[WhiteClock "0:00:50"]
[BlackClock "0:00:48"]

1. e4 {[%clk 0:15:00]}  e5 {[%clk 0:15:00]} 2. Nf3 {[%clk 0:15:00]}  Nc6 {[%clk 0:15:00]} 3. g3 {[%clk 0:15:00]}  Nf6 {[%clk 0:13:27]} 4. d3 {[%clk 0:15:59]}  d5 {[%clk 0:13:27]} 5. exd5 {[%clk 0:15:59]}  Qxd5 {[%clk 0:13:27]} 6. Bg2 {[%clk 0:15:59]}  Bg4 {[%clk 0:13:27]} 7. h3 {[%clk 0:15:59]}  Bh5 {[%clk 0:13:27]} 8. g4 {[%clk 0:15:59]}  Bg6 {[%clk 0:13:27]} 9. O-O {[%clk 0:15:59]}  O-O-O {[%clk 0:13:27]} 10. Re1 {[%clk 0:15:59]}  e4 {[%clk 0:13:25]} 11. Nh4 {[%clk 0:15:28]}  Qd7 {[%clk 0:13:25]} 12. g5 {[%clk 0:15:28]}  Bh5 {[%clk 0:11:19]} 13. Qd2 {[%clk 0:14:34]}  Ne8 {[%clk 0:11:19]} 14. Rxe4 {[%clk 0:14:34]}  Nd6 {[%clk 0:11:19]} 15. Re1 {[%clk 0:14:34]}  h6 {[%clk 0:11:19]} 16. Na3 {[%clk 0:13:47]}  hxg5 {[%clk 0:10:00]} 17. Qxg5 {[%clk 0:13:47]}  Be7 {[%clk 0:10:00]} 18. Bxc6 {[%clk 0:13:47]}  Qxc6 {[%clk 0:10:00]} 19. Rxe7 {[%clk 0:13:47]}  f6 {[%clk 0:10:00]} 20. Qg2 {[%clk 0:13:47]}  g5 {[%clk 0:09:15]} 21. Qxc6 {[%clk 0:11:54]}  bxc6 {[%clk 0:09:15]} 22. Ng2 {[%clk 0:11:54]}  Nf5 {[%clk 0:09:15]} 23. Re6 {[%clk 0:11:54]}  Bf3 {[%clk 0:09:12]} 24. Ne1 {[%clk 0:10:51]}  Bd5 {[%clk 0:05:45]} 25. Rxf6 {[%clk 0:10:51]}  Rde8 {[%clk 0:05:39]} 26. Bd2 {[%clk 0:10:57]}  Rxh3 {[%clk 0:01:59]} 27. f3 {[%clk 0:10:57]}  Nd4 {[%clk 0:01:59]} 28. c4 {[%clk 0:08:46]}  Ne2+ {[%clk 0:00:44]} 29. Kf2 {[%clk 0:05:12]}  Rh2+ {[%clk 0:01:11]} 30. Ng2 {[%clk 0:05:12]}  g4 {[%clk 0:01:11]} 31. Bf4 {[%clk 0:05:12]}  Nxf4 {[%clk 0:01:11]} 32. Rxf4 {[%clk 0:05:12]}  Bxf3 {[%clk 0:01:11]} 33. Rxf3 {[%clk 0:05:12]}  gxf3 {[%clk 0:01:11]} 34. Kxf3 {[%clk 0:05:12]}  Rf8+ {[%clk 0:01:11]} 35. Kg3 {[%clk 0:05:12]}  Rh7 {[%clk 0:01:11]} 36. Nc2 {[%clk 0:04:41]}  Rg7+ {[%clk 0:00:54]} 37. Kh2 {[%clk 0:04:41]}  Rf2 {[%clk 0:00:54]} 38. Ne1 {[%clk 0:04:41]}  Rxb2 {[%clk 0:00:54]} 39. a4 {[%clk 0:03:16]}  a5 {[%clk 0:00:33]} 40. Kh3 {[%clk 0:03:16]}  Kd7 {[%clk 0:00:33]} 41. Nf4 {[%clk 0:03:16]}  Rg1 {[%clk 0:00:33]} 42. d4 {[%clk 0:03:16]}  Rf2 {[%clk 0:00:33]} 43. Nfd3 {[%clk 0:01:46]}  Re2 {[%clk 0:00:21]} 44. Ne5+ {[%clk 0:01:46]}  Kd6 {[%clk 0:00:21]} 45. N5f3 {[%clk 0:01:46]}  Rg7 {[%clk 0:00:21]} 46. Ra3 {[%clk 0:01:46]}  c5 {[%clk 0:00:21]} 47. Rd3 {[%clk 0:01:46]}  Re8 {[%clk 0:00:21]} 48. Ng2 {[%clk 0:01:46]}  cxd4 {[%clk 0:00:21]} 49. Rxd4+ {[%clk 0:01:46]}  Kc5 {[%clk 0:00:21]} 50. Rd5+ {[%clk 0:01:46]}  Kb4 {[%clk 0:00:21]} 51. Rb5+ {[%clk 0:00:50]}  Kxa4 {[%clk 0:00:48]} 52. Rb7 {[%clk 0:00:50]}  Rf8 {[%clk 0:00:48]} 53. Ne5 {[%clk 0:00:50]}  Rf5 {[%clk 0:00:48]} 54. Rb5 {[%clk 0:00:50]}  Rh5+ {[%clk 0:00:48]} 55. Nh4 {[%clk 0:00:50]}  Rgh7 {[%clk 0:00:48]} 0-1


[Site "http://www.Chess.com"]

[Event "FIDE World Rapid Chess Championship 2021"]
[White "Donchenko, Alexander"]
[Black "Aziz, Husain"]
[WhiteFideId "24603295"]
[BlackFideId "12100293"]
[WhiteElo "2535"]
[BlackElo "2430"]
[Result "1-0"]
[Round "08"]
[TimeControl "900+10"]
[Date "2021.12.27"]
[WhiteClock "0:00:58"]
[BlackClock "0:00:03"]

1. Nf3 {[%clk 0:15:00]}  d5 {[%clk 0:15:00]} 2. g3 {[%clk 0:15:00]}  c6 {[%clk 0:14:35]} 3. Bg2 {[%clk 0:15:16]}  Bg4 {[%clk 0:14:35]} 4. h3 {[%clk 0:15:16]}  Bh5 {[%clk 0:14:35]} 5. O-O {[%clk 0:15:16]}  e6 {[%clk 0:14:35]} 6. d4 {[%clk 0:15:16]}  Nf6 {[%clk 0:14:35]} 7. c4 {[%clk 0:15:16]}  Nbd7 {[%clk 0:14:35]} 8. cxd5 {[%clk 0:15:16]}  exd5 {[%clk 0:14:35]} 9. Qb3 {[%clk 0:15:16]}  Qb6 {[%clk 0:14:35]} 10. Qe3+ {[%clk 0:15:16]}  Be7 {[%clk 0:14:35]} 11. Nh4 {[%clk 0:15:16]}  Bg6 {[%clk 0:14:35]} 12. Nc3 {[%clk 0:15:16]}  Qd8 {[%clk 0:14:35]} 13. Nxg6 {[%clk 0:15:16]}  hxg6 {[%clk 0:14:35]} 14. Qd3 {[%clk 0:15:16]}  O-O {[%clk 0:14:35]} 15. Rb1 {[%clk 0:15:16]}  a5 {[%clk 0:14:35]} 16. h4 {[%clk 0:15:16]}  Re8 {[%clk 0:14:35]} 17. a3 {[%clk 0:15:07]}  a4 {[%clk 0:14:18]} 18. Bf3 {[%clk 0:15:07]}  Nb6 {[%clk 0:14:18]} 19. b3 {[%clk 0:15:07]}  axb3 {[%clk 0:13:36]} 20. Rxb3 {[%clk 0:13:58]}  Nc4 {[%clk 0:10:37]} 21. Rxb7 {[%clk 0:14:06]}  Bxa3 {[%clk 0:10:37]} 22. Bg5 {[%clk 0:14:06]}  Be7 {[%clk 0:10:37]} 23. Rfb1 {[%clk 0:14:06]}  Nd6 {[%clk 0:10:37]} 24. R7b6 {[%clk 0:14:06]}  Qd7 {[%clk 0:09:12]} 25. Bf4 {[%clk 0:13:25]}  Bf8 {[%clk 0:09:12]} 26. Kg2 {[%clk 0:13:25]}  Nfe4 {[%clk 0:09:12]} 27. Qc2 {[%clk 0:11:20]}  Ra3 {[%clk 0:09:02]} 28. Bxe4 {[%clk 0:10:49]}  dxe4 {[%clk 0:09:02]} 29. Bxd6 {[%clk 0:09:57]}  Bxd6 {[%clk 0:05:08]} 30. d5 {[%clk 0:09:57]}  e3 {[%clk 0:03:33]} 31. f3 {[%clk 0:09:57]}  Be5 {[%clk 0:01:46]} 32. dxc6 {[%clk 0:05:08]}  Qd2 {[%clk 0:01:46]} 33. Qxd2 {[%clk 0:05:08]}  exd2 {[%clk 0:01:46]} 34. Ne4 {[%clk 0:05:08]}  Ra2 {[%clk 0:00:57]} 35. Kf1 {[%clk 0:03:53]}  Rc2 {[%clk 0:00:57]} 36. Rd1 {[%clk 0:03:53]}  Rc1 {[%clk 0:00:57]} 37. Rb1 {[%clk 0:02:26]}  Rxc6 {[%clk 0:00:42]} 38. Kf2 {[%clk 0:02:26]}  f5 {[%clk 0:00:42]} 39. Nxd2 {[%clk 0:02:26]}  Bd4+ {[%clk 0:00:42]} 40. Kf1 {[%clk 0:02:26]}  Rc2 {[%clk 0:00:42]} 41. Rb7 {[%clk 0:01:08]}  Bc3 {[%clk 0:00:17]} 42. Rd7 {[%clk 0:01:08]}  Ra8 {[%clk 0:00:17]} 43. Nb1 {[%clk 0:01:08]}  Be5 {[%clk 0:00:17]} 44. f4 {[%clk 0:01:08]}  Bf6 {[%clk 0:00:17]} 45. R7d2 {[%clk 0:01:08]}  Rxd2 {[%clk 0:00:17]} 46. Nxd2 {[%clk 0:01:08]}  Rd8 {[%clk 0:00:17]} 47. e3 {[%clk 0:01:08]}  Bc3 {[%clk 0:00:17]} 48. Ke2 {[%clk 0:01:08]}  Bxd2 {[%clk 0:00:17]} 49. Rxd2 {[%clk 0:01:08]}  Ra8 {[%clk 0:00:17]} 50. Rd5 {[%clk 0:01:08]}  Ra2+ {[%clk 0:00:17]} 51. Kf3 {[%clk 0:01:08]}  Ra3 {[%clk 0:00:17]} 52. Re5 {[%clk 0:01:08]}  Kf7 {[%clk 0:00:33]} 53. g4 {[%clk 0:01:18]}  Kf6 {[%clk 0:00:33]} 54. g5+ {[%clk 0:01:18]}  Kf7 {[%clk 0:00:33]} 55. h5 {[%clk 0:01:18]}  Ra1 {[%clk 0:00:33]} 56. Rb5 {[%clk 0:01:18]}  gxh5 {[%clk 0:00:33]} 57. Rxf5+ {[%clk 0:01:18]}  Kg6 {[%clk 0:00:33]} 58. Rb5 {[%clk 0:01:18]}  Rf1+ {[%clk 0:00:33]} 59. Kg2 {[%clk 0:01:18]}  Ra1 {[%clk 0:00:33]} 60. Rb2 {[%clk 0:01:11]}  Kf5 {[%clk 0:00:16]} 61. Kf3 {[%clk 0:01:11]}  Rf1+ {[%clk 0:00:16]} 62. Rf2 {[%clk 0:01:11]}  Rxf2+ {[%clk 0:00:16]} 63. Kxf2 {[%clk 0:01:11]}  Ke4 {[%clk 0:00:16]} 64. Kg3 {[%clk 0:01:11]}  g6 {[%clk 0:00:16]} 65. Kg2 {[%clk 0:01:11]}  Kxe3 {[%clk 0:00:16]} 66. f5 {[%clk 0:01:11]}  gxf5 {[%clk 0:00:16]} 67. g6 {[%clk 0:01:11]}  f4 {[%clk 0:00:03]} 68. g7 {[%clk 0:00:58]}  Ke2 {[%clk 0:00:03]} 69. g8=Q {[%clk 0:00:58]}  f3+ {[%clk 0:00:03]} 70. Kg3 {[%clk 0:00:58]}  h4+ {[%clk 0:00:03]} 71. Kxh4 {[%clk 0:00:58]}  f2 {[%clk 0:00:03]} 72. Qg2 {[%clk 0:00:58]}  Ke1 {[%clk 0:00:03]} 73. Qe4+ {[%clk 0:00:58]}  Kd1 {[%clk 0:00:03]} 74. Qf3+ {[%clk 0:00:58]}  Ke1 {[%clk 0:00:03]} 75. Qe3+ {[%clk 0:00:58]} 1-0


[Site "http://www.Chess.com"]

[Event "FIDE World Rapid Chess Championship 2021"]
[White "Gabuzyan, Hovhannes"]
[Black "Blohberger, Felix"]
[WhiteFideId "13303732"]
[BlackFideId "1632051"]
[WhiteElo "2535"]
[BlackElo "2409"]
[Result "1-0"]
[Round "08"]
[TimeControl "900+10"]
[Date "2021.12.27"]
[WhiteClock "0:12:34"]
[BlackClock "0:04:01"]

1. f4 {[%clk 0:15:00]}  b6 {[%clk 0:15:00]} 2. e4 {[%clk 0:14:32]}  Bb7 {[%clk 0:14:11]} 3. Nc3 {[%clk 0:14:32]}  Nf6 {[%clk 0:14:11]} 4. e5 {[%clk 0:14:32]}  Ne4 {[%clk 0:14:11]} 5. Nf3 {[%clk 0:14:32]}  e6 {[%clk 0:14:11]} 6. Bd3 {[%clk 0:14:32]}  d5 {[%clk 0:14:11]} 7. Bxe4 {[%clk 0:14:32]}  dxe4 {[%clk 0:14:11]} 8. Ng5 {[%clk 0:14:32]}  e3 {[%clk 0:13:13]} 9. Qh5 {[%clk 0:14:25]}  Qe7 {[%clk 0:13:13]} 10. dxe3 {[%clk 0:14:33]}  Bxg2 {[%clk 0:09:23]} 11. Rg1 {[%clk 0:14:33]}  g6 {[%clk 0:09:23]} 12. Qe2 {[%clk 0:14:33]}  Bb7 {[%clk 0:09:23]} 13. b3 {[%clk 0:14:33]}  Nc6 {[%clk 0:09:23]} 14. Bb2 {[%clk 0:13:29]}  O-O-O {[%clk 0:08:40]} 15. Rd1 {[%clk 0:13:29]}  Rxd1+ {[%clk 0:08:40]} 16. Kxd1 {[%clk 0:13:29]}  h6 {[%clk 0:08:40]} 17. Nge4 {[%clk 0:13:29]}  Bg7 {[%clk 0:08:40]} 18. Kc1 {[%clk 0:13:29]}  Rd8 {[%clk 0:08:40]} 19. a3 {[%clk 0:13:29]}  Qh4 {[%clk 0:08:40]} 20. Kb1 {[%clk 0:13:29]}  Nxe5 {[%clk 0:07:56]} 21. fxe5 {[%clk 0:13:22]}  Bxe4 {[%clk 0:07:56]} 22. Rg4 {[%clk 0:13:22]}  Bxc2+ {[%clk 0:07:56]} 23. Kxc2 {[%clk 0:13:22]}  Qh5 {[%clk 0:07:56]} 24. Ra4 {[%clk 0:13:22]}  Qxe2+ {[%clk 0:07:37]} 25. Nxe2 {[%clk 0:12:41]}  Rd5 {[%clk 0:07:37]} 26. Nf4 {[%clk 0:12:41]}  Rc5+ {[%clk 0:07:37]} 27. Rc4 {[%clk 0:12:41]}  Rxc4+ {[%clk 0:07:37]} 28. bxc4 {[%clk 0:12:41]}  Kd7 {[%clk 0:07:37]} 29. a4 {[%clk 0:12:01]}  Kc6 {[%clk 0:06:15]} 30. Kd3 {[%clk 0:12:01]}  Bf8 {[%clk 0:06:15]} 31. Ne2 {[%clk 0:12:01]}  a6 {[%clk 0:06:15]} 32. h3 {[%clk 0:12:01]}  Be7 {[%clk 0:06:15]} 33. Bc1 {[%clk 0:12:01]}  Bf8 {[%clk 0:06:15]} 34. Nd4+ {[%clk 0:12:01]}  Kd7 {[%clk 0:06:15]} 35. e4 {[%clk 0:12:01]}  Bg7 {[%clk 0:05:01]} 36. c5 {[%clk 0:12:16]}  Bxe5 {[%clk 0:05:01]} 37. c6+ {[%clk 0:12:16]}  Ke7 {[%clk 0:05:01]} 38. Bxh6 {[%clk 0:12:16]}  Bxd4 {[%clk 0:04:01]} 39. Kxd4 {[%clk 0:12:34]}  Kd6 {[%clk 0:04:01]} 40. Bf8+ {[%clk 0:12:34]} 1-0


[Site "http://www.Chess.com"]